bitfinex-derivatives/quotes_BNBF0:USTF0_20250507
["timestamp","ask_amount","ask_price","bid_price","bid_amount"]
[1746653486922,1.26368961,601.54,599.68,1.2815112]
[1746653487223,0.33249102,601.52,599.68,1.2815112]
[1746653487522,2.27353116,601.51,599.68,1.2815112]
[1746653487721,0.3325076,601.49,599.68,1.2815112]
[1746653487921,1.26482129,601.48,599.68,1.2815112]
[1746653488116,2.57933798,601.47,599.68,1.2815112]
[1746653488323,1.59734548,601.46,599.68,1.2815112]
[1746653488519,1.597351,601.45,599.68,1.2815112]
[1746653488719,1.59735653,601.44,599.68,1.2815112]
[1746653488923,1.59736206,601.43,599.68,1.2815112]
[1746653489121,1.59659661,601.42,599.68,1.2815112]
[1746653489422,2.91114033,601.41,599.68,1.2815112]
[1746653489624,1.26405031,601.4,599.68,1.2815112]
[1746653489823,2.60532307,601.39,599.68,1.2815112]
[1746653490128,2.6053286,601.38,599.68,1.2815112]
[1746653490325,1.90245764,601.37,599.68,1.2815112]
[1746653490522,2.60533966,601.36,599.68,1.2815112]
[1746653490724,1.59663532,601.35,599.68,1.2815112]
[1746653490926,1.59664085,601.34,599.68,1.2815112]
[1746653491125,1.90247976,601.33,599.68,1.2815112]
[1746653491326,1.59665191,601.32,599.68,1.2815112]
[1746653491523,1.59665745,601.31,599.68,1.2815112]
[1746653491722,1.89997394,601.3,599.68,1.2815112]
[1746653492028,2.90868934,601.29,599.68,1.2815112]
[1746653492229,1.59415162,601.28,599.68,1.2815112]
[1746653492429,2.27023776,601.27,599.68,1.2815112]
[1746653492629,1.26152789,601.26,599.68,1.2815112]
[1746653492931,2.27023776,601.25,599.68,1.2815112]
[1746653493129,1.26152789,601.24,599.68,1.2815112]
[1746653493325,1.26152789,601.23,599.68,1.2815112]
[1746653493532,1.26152789,601.22,599.68,1.2815112]
[1746653493737,2.27023776,601.21,599.68,1.2815112]
[1746653493925,1.26152789,601.2,599.68,1.2815112]
[1746653494130,1.26152789,601.19,599.68,1.2815112]
[1746653494332,1.56736127,601.18,599.68,1.2815112]
[1746653494534,1.31454325,601.18,599.68,1.2815112]
[1746653494732,2.57503939,601.17,599.68,1.2815112]
[1746653494933,1.56632952,601.16,599.68,1.2815112]
[1746653495132,1.26049614,601.15,599.68,1.2815112]
[1746653495430,2.26920601,601.14,599.68,1.2815112]
[1746653495633,1.26049614,601.13,599.68,1.2815112]
[1746653495828,2.26920601,601.12,599.68,1.2815112]
[1746653496030,1.56632952,601.11,599.68,1.2815112]
[1746653496232,1.26049614,601.1,599.68,1.2815112]
[1746653496434,1.26049614,601.09,599.68,1.2815112]
[1746653496635,1.26049614,601.08,599.68,1.2815112]
[1746653496831,2.26920601,601.07,599.68,1.2815112]
[1746653497032,1.56632952,601.06,599.68,1.2815112]
[1746653497233,2.57503939,601.05,599.68,1.2815112]
[1746653497433,2.26920601,601.04,599.68,1.2815112]
[1746653497635,1.26111529,601.03,599.68,2.34424738]
[1746653497934,1.31454325,601.04,599.68,2.34424738]
[1746653497935,2.57565854,601.02,599.68,2.34424738]
[1746653498134,1.26111529,601.01,599.68,2.34424738]
[1746653498330,2.26924171,601.0,599.68,2.34424738]
[1746653498532,1.26053184,600.99,599.68,2.34424738]
[1746653498735,1.00870987,601.0,599.68,2.34424738]
[1746653498736,1.26053184,600.98,599.68,2.34424738]
[1746653498938,1.26053184,600.97,599.68,2.34424738]
[1746653499132,1.26053184,600.96,599.68,2.34424738]
[1746653499431,2.26924171,600.95,599.68,2.34424738]
[1746653499631,1.26053184,600.94,599.68,2.34424738]
[1746653499831,1.26053184,600.93,599.68,2.34424738]
[1746653500038,1.26053184,600.92,599.68,2.34424738]
[1746653500236,2.2685272,600.91,599.68,1.2815112]
[1746653500433,1.25981733,600.9,599.68,1.2815112]
[1746653500638,2.2685272,600.89,599.68,1.2815112]
[1746653500839,1.25981733,600.88,599.68,1.2815112]
[1746653501038,1.25981733,600.87,599.68,1.2815112]
[1746653501240,1.25981733,600.86,599.68,1.2815112]
[1746653501440,1.25981733,600.85,599.68,2.2035112]
[1746653501641,1.25981733,600.84,599.68,2.2035112]
[1746653501939,1.25981733,600.83,599.68,2.2035112]
[1746653502141,2.2685272,600.82,599.68,2.2035112]
[1746653502336,1.25981733,600.81,599.68,2.2035112]
[1746653502539,1.25981733,600.8,599.68,2.2035112]
[1746653502740,2.2685272,600.79,599.68,2.2035112]
[1746653502939,1.25981733,600.78,599.68,2.2035112]
[1746653503243,2.2685272,600.77,599.68,2.2035112]
[1746653503442,1.25981733,600.76,599.68,2.2035112]
[1746653503642,2.2685272,600.75,599.68,2.2035112]
[1746653503843,1.25981733,600.74,599.68,2.2035112]
[1746653504141,1.25981733,600.73,599.68,2.2035112]
[1746653504341,2.2685272,600.72,599.68,2.2035112]
[1746653504542,1.25981733,600.71,599.68,2.2035112]
[1746653504842,1.25981733,600.7,599.68,2.2035112]
[1746653505142,2.2685272,600.69,599.68,2.2035112]
[1746653505342,1.25981733,600.68,599.68,2.2035112]
[1746653505541,2.2685272,600.67,599.68,2.2035112]
[1746653505837,1.25981733,600.66,599.68,2.2035112]
[1746653506044,1.25981733,600.65,599.68,2.2035112]
[1746653506245,0.33262926,601.27,599.68,2.9735112]
[1746653506246,2.2685272,600.64,599.68,2.9735112]
[1746653506442,1.25981733,600.63,599.68,2.9735112]
[1746653506643,2.2685272,600.62,599.68,2.9735112]
[1746653506844,2.2685272,600.61,599.68,2.9735112]
[1746653507039,2.2685272,600.6,599.68,2.9735112]
[1746653507339,1.25981733,600.59,599.68,2.9735112]
[1746653507544,1.25981733,600.58,599.68,2.9735112]
[1746653507746,2.2685272,600.57,599.68,2.9735112]
[1746653508045,1.25981733,600.56,599.68,2.9735112]
[1746653508246,1.25981733,600.55,599.68,2.9735112]
[1746653508445,2.2685272,600.54,599.68,2.9735112]
[1746653508645,1.25981733,600.53,599.68,2.9735112]
[1746653508940,2.2685272,600.52,599.68,2.9735112]
[1746653509147,1.25981733,600.51,599.68,2.9735112]
[1746653509346,1.00870987,600.52,599.68,2.9735112]
[1746653509646,1.00870987,600.51,599.68,2.9735112]
[1746653510346,1.00870987,600.5,599.68,2.9735112]
[1746653510947,1.00870987,600.49,599.68,2.9735112]
[1746653511247,1.00870987,600.48,599.68,2.9735112]
[1746653511948,1.00870987,600.47,599.68,2.9735112]
[1746653512346,1.00870987,600.46,599.68,2.9735112]
[1746653512849,1.00870987,600.45,599.68,2.9735112]
[1746653513143,1.00870987,600.44,599.68,2.9735112]
[1746653513344,1.00870987,600.43,599.68,2.9735112]
[1746653513950,0.28994201,600.7,599.68,2.9735112]
[1746653514144,1.26502297,600.69,599.68,2.9735112]
[1746653514346,1.26502297,600.68,599.68,2.9735112]
[1746653514546,2.27472722,600.67,599.68,2.9735112]
[1746653514745,1.26502297,600.66,599.68,2.9735112]
[1746653514945,1.26502297,600.65,599.68,2.9735112]
[1746653515145,2.27472722,600.64,599.68,2.9735112]
[1746653515345,1.26502297,600.63,599.68,2.9735112]
[1746653515544,1.26502297,600.62,599.68,2.9735112]
[1746653515850,2.27472722,600.61,599.68,2.9735112]
[1746653516047,1.26502297,600.6,599.68,2.9735112]
[1746653516244,1.26502297,600.59,599.68,2.9735112]
[1746653516444,2.27472722,600.58,599.68,2.9735112]
[1746653516643,1.26502297,600.57,599.68,2.9735112]
[1746653516850,2.27400658,600.56,599.68,2.9735112]
[1746653517049,1.26430233,600.55,599.68,2.9735112]
[1746653517353,1.26430233,600.54,599.68,2.9735112]
[1746653517552,1.26430233,600.53,599.68,2.9735112]
[1746653517751,1.26430233,600.52,599.68,2.9735112]
[1746653518048,2.27400658,600.51,599.68,2.9735112]
[1746653518250,1.26430233,600.5,599.68,2.9735112]
[1746653518447,1.26430233,600.49,599.68,2.9735112]
[1746653518648,1.26430233,600.48,599.68,2.9735112]
[1746653518949,1.26430233,600.47,599.68,2.9735112]
[1746653519146,2.27400658,600.46,599.68,2.9735112]
[1746653519350,1.26430233,600.45,599.68,2.9735112]
[1746653519549,1.26417417,600.44,599.68,2.9735112]
[1746653519746,1.00970425,600.43,599.68,2.9735112]
[1746653520050,1.26408002,600.42,599.68,2.9735112]
[1746653520251,1.00970425,600.41,599.68,2.9735112]
[1746653520554,1.00970425,600.41,599.68,3.8395112]
[1746653520749,1.00970425,600.4,599.68,3.8395112]
[1746653521354,1.00970425,600.39,599.68,3.8395112]
[1746653521952,1.00970425,600.38,599.68,3.8395112]
[1746653522756,1.00970425,600.37,599.68,3.8395112]
[1746653523056,1.00970425,600.36,599.68,3.8395112]
[1746653523554,1.00970425,600.35,599.68,3.8395112]
[1746653523754,1.26269098,600.34,599.68,3.8395112]
[1746653523954,2.27239523,600.33,599.68,3.8395112]
[1746653524150,1.26202539,600.32,599.68,3.8395112]
[1746653524350,1.00970425,600.33,599.68,3.8395112]
[1746653524554,1.00970425,600.32,599.68,3.8395112]
[1746653524953,1.00970425,600.31,599.68,3.8395112]
[1746653525556,1.00970425,600.3,599.68,3.8395112]
[1746653526154,1.00970425,600.29,599.68,3.8395112]
[1746653526856,1.00970425,600.28,599.68,3.8395112]
[1746653527457,1.00970425,600.27,599.68,3.8395112]
[1746653527857,1.00970425,600.26,599.68,3.8395112]
[1746653528158,1.00970425,600.25,599.68,3.8395112]
[1746653528558,0.29002054,600.47,599.68,3.8395112]
[1746653528752,1.25857297,600.46,599.68,3.8395112]
[1746653528953,1.25857297,600.45,599.68,3.8395112]
[1746653529156,1.25857297,600.44,599.68,3.8395112]
[1746653529357,1.25857297,600.43,599.68,3.8395112]
[1746653529556,2.26474005,600.42,599.68,3.8395112]
[1746653529754,1.25857297,600.41,599.68,3.8395112]
[1746653529953,2.26474005,600.4,599.68,3.8395112]
[1746653530158,1.25857297,600.39,599.68,3.8395112]
[1746653530458,1.25857297,600.38,599.68,3.8395112]
[1746653530859,1.25723466,600.37,599.68,3.8395112]
[1746653531060,1.25723466,600.36,599.68,3.8395112]
[1746653531258,1.25723466,600.35,599.68,3.8395112]
[1746653531666,1.00616708,600.34,599.68,3.8395112]
[1746653531867,1.00616708,600.33,599.68,3.8395112]
[1746653532463,1.00616708,600.32,599.68,3.8395112]
[1746653532770,1.00616708,600.31,599.68,3.8395112]
[1746653532969,1.00616708,600.3,599.68,3.8395112]
[1746653533469,1.00616708,600.29,599.68,3.8395112]
[1746653534069,0.29001813,600.5,599.68,3.8395112]
[1746653534270,1.2571602,600.49,599.68,3.8395112]
[1746653534471,1.2571602,600.48,599.68,3.8395112]
[1746653534667,1.2571602,600.47,599.68,3.8395112]
[1746653534865,1.2571602,600.46,599.68,3.8395112]
[1746653535075,1.2571602,600.45,599.68,3.8395112]
[1746653535268,1.2571602,600.44,599.68,3.8395112]
[1746653535573,1.2571602,600.43,599.68,3.8395112]
[1746653535773,1.00472998,600.43,599.68,3.8395112]
[1746653536478,1.2573058,600.42,599.68,3.8395112]
[1746653536677,1.2573058,600.41,599.68,3.8395112]
[1746653536876,1.2573058,600.4,599.68,3.8395112]
[1746653537077,1.2573058,600.39,599.68,3.8395112]
[1746653537271,2.26203578,600.38,599.68,3.8395112]
[1746653537476,1.2573058,600.37,599.68,3.8395112]
[1746653537676,1.2573058,600.36,599.68,3.8395112]
[1746653537877,2.26203578,600.35,599.68,3.8395112]
[1746653538078,2.26203578,600.34,599.68,3.8395112]
[1746653538277,1.2573058,600.33,599.68,3.8395112]
[1746653538481,1.2573058,600.32,599.68,3.8395112]
[1746653538677,2.26203578,600.31,599.68,3.8395112]
[1746653538874,1.2573058,600.3,599.68,3.8395112]
[1746653539079,1.00472998,600.31,599.68,3.8395112]
[1746653539277,2.26286196,600.3,599.68,3.8395112]
[1746653539480,1.25813198,600.29,599.68,3.8395112]
[1746653539779,1.00472998,600.28,599.68,3.8395112]
[1746653539979,1.25813198,600.27,599.68,3.8395112]
[1746653540275,1.00472998,600.26,599.68,3.8395112]
[1746653540479,1.25813198,600.25,599.68,3.8395112]
[1746653540679,1.00472998,600.24,599.68,3.8395112]
[1746653541076,2.26307182,600.23,599.68,3.8395112]
[1746653541376,1.25834184,600.22,599.68,3.8395112]
[1746653541582,1.00472998,600.21,599.68,3.8395112]
[1746653541781,1.00472998,600.21,599.68,2.8915112]
[1746653541980,1.00472998,600.21,599.68,1.1995112]
[1746653542181,1.00472998,600.2,599.68,1.1995112]
[1746653542675,1.00472998,600.19,599.68,1.1995112]
[1746653543280,1.00472998,600.18,599.68,1.1995112]
[1746653544076,1.00472998,600.17,599.68,1.1995112]
[1746653544782,1.00472998,600.16,599.68,1.1995112]
[1746653545483,1.00472998,600.15,599.68,1.1995112]
[1746653546184,0.29007373,600.34,599.68,1.1995112]
[1746653546385,1.25674728,600.33,599.68,1.1995112]
[1746653546583,1.25674728,600.32,599.68,1.1995112]
[1746653546884,2.26094906,600.31,599.68,1.1995112]
[1746653547084,1.25674728,600.3,599.68,1.1995112]
[1746653547284,1.25674728,600.29,599.68,1.1995112]
[1746653547484,2.26094906,600.28,599.68,1.1995112]
[1746653547685,2.26094906,600.27,599.68,1.1995112]
[1746653547881,1.25674728,600.26,599.68,1.1995112]
[1746653548076,2.26094906,600.25,599.68,1.1995112]
[1746653548282,1.25674728,600.24,599.68,1.1995112]
[1746653548480,2.26094906,600.23,599.68,1.1995112]
[1746653548680,1.25674728,600.22,599.68,1.1995112]
[1746653548883,1.25674728,600.21,599.68,1.1995112]
[1746653549083,2.26094906,600.2,599.68,1.1995112]
[1746653549285,2.26094906,600.19,599.68,1.1995112]
[1746653549486,1.25674728,600.18,599.68,1.1995112]
[1746653549886,1.00420178,600.17,599.68,1.1995112]
[1746653550086,1.25674728,600.16,599.68,1.1995112]
[1746653550486,1.00420178,600.15,599.68,1.1995112]
[1746653551087,1.00420178,600.14,599.68,1.1995112]
[1746653551587,2.26039425,600.13,599.68,1.1995112]
[1746653551787,1.25619247,600.12,599.68,1.1995112]
[1746653552387,1.00420178,600.11,599.68,1.1995112]
[1746653553384,1.00420178,600.1,599.68,1.1995112]
[1746653553882,1.00420178,600.09,599.68,1.1995112]
[1746653554487,1.00420178,600.08,599.68,1.1995112]
[1746653554687,1.00420178,600.08,599.68,0.3335112]
[1746653554880,0.29008703,600.32,599.68,0.3335112]
[1746653555081,1.25654422,600.31,599.68,0.3335112]
[1746653555280,2.26078229,600.3,599.68,0.3335112]
[1746653555483,1.25654422,600.29,599.68,0.3335112]
[1746653555686,1.25654422,600.28,599.68,0.3335112]
[1746653555886,1.25654422,600.27,599.68,0.3335112]
[1746653556088,1.25654422,600.26,599.68,0.3335112]
[1746653556389,2.26078229,600.25,599.68,0.3335112]
[1746653556585,1.25654422,600.24,599.68,0.3335112]
[1746653556783,1.25654422,600.23,599.68,0.3335112]
[1746653556983,2.26078229,600.22,599.68,0.3335112]
[1746653557188,2.26078229,600.21,599.68,0.3335112]
[1746653557383,1.25654422,600.2,599.68,0.3335112]
[1746653557688,2.26078229,600.19,599.68,1.3985112]
[1746653557888,1.25654422,600.18,599.68,1.3985112]
[1746653558388,1.00423807,600.17,599.68,1.3985112]
[1746653558589,2.26078229,600.16,599.68,1.3985112]
[1746653558789,1.25654422,600.15,599.68,1.3985112]
[1746653559085,1.00423807,600.14,599.68,1.3985112]
[1746653559593,1.25512345,600.13,599.68,1.3985112]
[1746653559790,2.25936152,600.13,599.68,1.3985112]
[1746653559984,1.00423807,600.12,599.68,1.3985112]
[1746653560792,1.00423807,600.11,599.68,1.3985112]
[1746653560993,1.00423807,600.1,599.68,1.3985112]
[1746653561492,1.00423807,600.09,599.68,1.3985112]
[1746653561891,1.00423807,600.08,599.68,1.3985112]
[1746653562393,1.00423807,600.28,599.68,1.3985112]
[1746653562587,1.25575998,600.27,599.68,1.3985112]
[1746653562794,1.25575998,600.26,599.68,1.3985112]
[1746653562995,1.25575922,600.25,599.68,1.3985112]
[1746653563195,1.25575922,600.24,599.68,1.3985112]
[1746653563493,1.25575922,600.23,599.68,1.3985112]
[1746653563792,2.25999729,600.22,599.68,1.3985112]
[1746653563993,1.25575922,600.21,599.68,1.3985112]
[1746653564189,1.25575922,600.2,599.68,1.3985112]
[1746653564492,2.25999729,600.19,599.68,1.3985112]
[1746653564693,1.25575922,600.18,599.68,1.3985112]
[1746653564892,1.25575922,600.17,599.68,1.3985112]
[1746653565192,1.25575922,600.16,599.68,1.3985112]
[1746653565393,2.25999729,600.15,599.68,1.3985112]
[1746653565692,1.25575922,600.14,599.68,1.3985112]
[1746653566094,2.25999729,600.13,599.68,1.3985112]
[1746653566294,1.25575922,600.12,599.68,1.3985112]
[1746653566494,1.00423807,600.11,599.68,1.3985112]
[1746653566988,1.00423807,600.1,599.68,1.3985112]
[1746653567693,1.00423807,600.09,599.68,1.3985112]
[1746653568098,1.00423807,600.08,599.68,1.3985112]
[1746653568495,1.00423807,600.07,599.68,1.3985112]
[1746653568895,1.00423807,600.06,599.68,1.3985112]
[1746653569093,1.00423807,600.05,599.68,1.3985112]
[1746653569396,1.00423807,600.04,599.68,1.3985112]
[1746653569897,0.29007977,600.33,599.68,1.3985112]
[1746653570097,1.25644724,600.32,599.68,1.3985112]
[1746653570290,1.25644647,600.31,599.68,1.3985112]
[1746653570494,1.25644647,600.3,599.68,1.3985112]
[1746653570694,0.29007977,600.33,599.68,1.3985112]
[1746653570695,2.2610131,600.29,599.68,1.3985112]
[1746653570894,1.25644647,600.28,599.68,1.3985112]
[1746653571094,1.25644647,600.27,599.68,1.3985112]
[1746653571291,1.25652241,600.26,599.68,1.3985112]
[1746653571491,1.25652241,600.25,599.68,1.3985112]
[1746653571696,2.26108904,600.24,599.68,1.3985112]
[1746653571892,1.25652241,600.23,599.68,1.3985112]
[1746653572095,1.25652241,600.22,599.68,1.3985112]
[1746653572292,2.26108904,600.21,599.68,1.3985112]
[1746653572495,1.25652241,600.2,599.68,1.3985112]
[1746653572693,1.25652241,600.19,599.68,1.3985112]
[1746653572897,1.25652241,600.18,599.68,1.3985112]
[1746653573097,2.26108904,600.17,599.68,1.3985112]
[1746653573294,1.25652241,600.16,599.68,1.3985112]
[1746653573494,1.25652241,600.15,599.68,1.3985112]
[1746653573692,2.26108904,600.14,599.68,1.3985112]
[1746653573895,1.25652241,600.13,599.68,1.3985112]
[1746653574099,1.25871807,600.12,599.68,1.3985112]
[1746653574297,2.2632847,600.11,599.68,1.3985112]
[1746653574495,1.25871807,600.1,599.68,1.3985112]
[1746653574692,1.25871807,600.09,599.68,1.3985112]
[1746653574898,1.00456663,600.1,599.68,1.3985112]
[1746653575097,1.00456663,600.08,599.68,1.3985112]
[1746653575599,1.00456663,600.07,599.68,1.3985112]
[1746653575901,1.00456663,600.06,599.68,1.3985112]
[1746653576300,1.00456663,600.05,599.68,1.3985112]
[1746653576699,1.00456663,600.04,599.68,1.3985112]
[1746653577000,1.00456663,600.03,599.68,1.3985112]
[1746653578402,1.00456663,600.02,599.68,1.3985112]
[1746653579100,1.00456663,600.01,599.68,1.3985112]
[1746653579401,1.00456663,600.0,599.68,1.3985112]
[1746653579604,0.33333888,599.99,599.68,1.3985112]
[1746653582505,1.00941342,599.98,599.68,1.3985112]
[1746653582701,1.34275786,599.98,599.68,1.3985112]
[1746653583105,0.33334444,599.98,599.68,1.3985112]
[1746653585909,1.01077764,599.97,599.68,1.3985112]
[1746653586209,1.01077764,599.96,599.68,1.3985112]
[1746653586610,0.33334444,599.98,599.68,1.3985112]
[1746653586912,1.01028686,599.97,599.68,1.3985112]
[1746653587610,1.01028686,599.96,599.68,1.3985112]
[1746653588205,1.01028686,599.95,599.68,1.3985112]
[1746653588908,0.33334444,599.98,599.68,1.3985112]
[1746653589212,1.00972055,599.97,599.68,1.3985112]
[1746653589711,1.00972055,599.96,599.68,1.3985112]
[1746653590108,1.00972055,599.95,599.68,1.3985112]
[1746653590711,0.33334444,599.98,599.68,1.3985112]
[1746653591112,1.00967788,599.97,599.68,1.3985112]
[1746653591310,1.00967788,599.96,599.68,1.3985112]
[1746653591908,1.00967788,599.95,599.68,1.3985112]
[1746653592411,1.00967788,599.94,599.68,1.3985112]
[1746653592712,0.33334444,599.98,599.68,1.3985112]
[1746653593312,1.00949444,599.97,599.68,1.3985112]
[1746653593914,1.00949444,599.96,599.68,1.3985112]
[1746653594614,1.00949444,599.95,599.68,1.3985112]
[1746653594815,1.00949444,599.94,599.68,1.3985112]
[1746653595116,1.00949444,599.93,599.68,1.3985112]
[1746653595917,1.00949444,599.92,599.68,1.3985112]
[1746653596417,0.33334444,599.98,599.68,1.3985112]
[1746653596717,1.26245525,599.97,599.68,1.3985112]
[1746653596914,0.33334444,599.98,599.68,1.3985112]
[1746653597118,1.26270343,599.96,599.68,1.3985112]
[1746653597315,1.01065202,599.97,599.68,1.3985112]
[1746653597519,1.26270343,599.96,599.68,1.3985112]
[1746653597721,1.01065202,599.97,599.68,1.3985112]
[1746653597915,1.26271312,599.96,599.68,1.3985112]
[1746653598220,1.01065202,599.97,599.68,1.3985112]
[1746653598221,1.01065202,599.95,599.68,1.3985112]
[1746653598719,1.01065202,599.94,599.68,1.3985112]
[1746653599319,1.01065202,599.93,599.68,1.3985112]
[1746653599920,1.01065202,599.92,599.68,1.3985112]
[1746653600314,1.01065202,599.91,599.68,1.3985112]
[1746653600921,1.01065202,599.9,599.68,1.3985112]
[1746653601516,1.01065202,599.89,599.68,1.3985112]
[1746653602015,1.01065202,599.88,599.68,1.3985112]
[1746653602618,1.01065202,599.87,599.68,1.3985112]
[1746653603523,1.01065202,599.86,599.68,1.3985112]
[1746653603723,1.01065202,599.86,599.68,1.065]
[1746653604024,0.29011,600.33,599.68,1.065]
[1746653604222,1.26585287,600.32,599.68,1.065]
[1746653604423,1.26585287,600.31,599.68,1.065]
[1746653604618,1.26585287,600.3,599.68,1.065]
[1746653604819,1.26585287,600.29,599.68,1.065]
[1746653605024,1.26585287,600.28,599.68,1.065]
[1746653605323,2.27825535,600.27,599.68,1.065]
[1746653605523,1.26582109,600.26,599.68,1.065]
[1746653605819,2.27825535,600.25,599.68,1.065]
[1746653606122,1.26582109,600.24,599.68,1.065]
[1746653606324,1.26582109,600.23,599.68,1.065]
[1746653606524,1.26582109,600.22,599.68,1.065]
[1746653606724,1.26582109,600.21,599.68,1.065]
[1746653607025,1.26603904,600.2,599.43,1.088]
[1746653607226,1.26603904,600.19,599.43,1.088]
[1746653607423,1.26603904,600.18,599.43,1.088]
[1746653607623,1.26603904,600.17,599.43,1.088]
[1746653607823,1.26603904,600.16,599.43,1.088]
[1746653608026,1.26603904,600.15,599.43,1.088]
[1746653608224,1.26603904,600.14,599.43,1.088]
[1746653608420,1.26603904,600.13,599.43,1.088]
[1746653608720,2.17218682,601.08,599.43,1.088]
[1746653608721,2.2784733,600.12,599.43,1.088]
[1746653609025,1.26603904,600.11,599.43,1.088]
[1746653609224,2.2784733,600.1,599.43,1.088]
[1746653609419,1.26603904,600.09,599.43,1.088]
[1746653609623,1.26603904,600.08,599.43,1.088]
[1746653609823,2.2784733,600.07,599.43,2.041]
[1746653610021,1.26603904,600.06,599.43,2.041]
[1746653610223,2.2784733,600.05,599.43,2.041]
[1746653610422,1.26603904,600.04,599.43,2.041]
[1746653610621,1.26603904,600.03,599.43,2.041]
[1746653610822,2.2784733,600.02,599.43,2.041]
[1746653611027,1.26718856,600.01,599.43,2.041]
[1746653611323,1.26718856,600.0,599.43,2.041]
[1746653611527,2.27962282,599.99,599.43,2.041]
[1746653611732,1.26718856,599.98,599.43,2.041]
[1746653611926,1.26718856,599.97,599.43,2.041]
[1746653612121,2.27962282,599.96,599.43,2.041]
[1746653612321,1.26718856,599.95,599.43,2.041]
[1746653612622,1.26737028,599.94,599.43,2.041]
[1746653612826,1.26737028,599.93,599.43,2.041]
[1746653613127,2.27980454,599.92,599.43,2.041]
[1746653613324,2.27980454,599.91,599.43,2.041]
[1746653613527,1.26737028,599.9,599.43,2.041]
[1746653613726,1.01243426,599.89,599.43,2.041]
[1746653614022,1.01243426,599.88,599.43,2.041]
[1746653614527,1.01243426,599.87,599.43,2.041]
[1746653614922,1.01243426,599.86,599.43,2.041]
[1746653615225,1.01243426,599.85,599.43,2.041]
[1746653616334,1.01243426,599.84,599.43,2.041]
[1746653617129,0.29013056,600.37,599.43,2.041]
[1746653617329,2.28198212,600.36,599.43,2.041]
[1746653617529,1.26835193,600.35,599.43,2.041]
[1746653617722,2.28198212,600.34,599.43,2.041]
[1746653617928,1.26835193,600.33,599.43,2.041]
[1746653618128,1.26821859,600.32,599.43,2.041]
[1746653618325,2.28184878,600.31,599.43,2.041]
[1746653618623,1.26821859,600.3,599.43,2.041]
[1746653618930,2.28184878,600.29,599.43,2.041]
[1746653619128,2.28184878,600.28,599.43,2.041]
[1746653619429,2.28184878,600.27,599.43,2.041]
[1746653619622,1.26821859,600.26,599.43,2.041]
[1746653619827,1.26821859,600.25,599.43,2.041]
[1746653620126,2.28184878,600.24,599.43,2.041]
[1746653620326,1.26821859,600.23,599.43,2.041]
[1746653620527,2.28184878,600.22,599.43,2.041]
[1746653620726,2.28184878,600.21,599.43,2.041]
[1746653621029,1.26821859,600.2,599.43,2.041]
[1746653621227,2.28184878,600.19,599.43,2.041]
[1746653621424,1.26821859,600.18,599.43,2.041]
[1746653621632,1.26821859,600.17,599.43,2.041]
[1746653621827,1.26821859,600.16,599.43,2.041]
[1746653622026,1.26821859,600.15,599.43,2.041]
[1746653622230,2.28184878,600.14,599.43,2.041]
[1746653622432,1.26821859,600.13,599.43,2.041]
[1746653622626,2.28184878,600.12,599.43,2.041]
[1746653622830,1.26821859,600.11,599.43,2.041]
[1746653623031,2.28184878,600.1,599.43,2.041]
[1746653623230,1.26821859,600.09,599.43,2.041]
[1746653623427,2.28184878,600.08,599.43,2.041]
[1746653623631,1.26682769,600.07,599.43,2.041]
[1746653623937,2.2803863,600.06,599.43,2.041]
[1746653624127,1.01363019,600.05,599.43,2.041]
[1746653624633,0.29007977,600.49,599.43,2.041]
[1746653624933,1.26506521,600.48,599.43,2.041]
[1746653625133,1.26506521,600.47,599.43,2.041]
[1746653625435,1.26448354,600.46,599.43,2.041]
[1746653625632,1.26448354,600.45,599.43,2.041]
[1746653625830,2.27611433,600.44,599.43,2.041]
[1746653626027,1.26448354,600.43,599.43,2.041]
[1746653626234,1.26448354,600.42,599.43,2.041]
[1746653626432,2.27611433,600.41,599.43,2.041]
[1746653626640,1.26448354,600.4,599.43,2.041]
[1746653626834,1.26128412,600.39,599.43,2.041]
[1746653627037,1.26128412,600.38,599.43,2.041]
[1746653627339,2.27291491,600.37,599.43,2.041]
[1746653627535,2.27291491,600.36,599.43,2.041]
[1746653627734,2.27291491,600.35,599.43,2.041]
[1746653627934,1.26128412,600.34,599.43,2.041]
[1746653628178,1.26128412,600.33,599.43,2.041]
[1746653628390,1.26128412,600.32,599.43,2.041]
[1746653628640,2.27291491,600.31,599.43,2.041]
[1746653628840,1.26128412,600.3,599.43,2.041]
[1746653629043,1.26048179,600.29,599.43,2.041]
[1746653629238,2.27211258,600.28,599.43,2.041]
[1746653629441,1.01163079,600.28,599.43,2.041]
[1746653629841,1.01163079,600.27,599.43,2.041]
[1746653630239,1.01163079,600.26,599.43,2.041]
[1746653630942,1.01163079,600.25,599.43,2.041]
[1746653631340,0.29003263,600.57,599.43,2.041]
[1746653631641,1.25867926,600.56,599.43,2.041]
[1746653631842,1.25867926,600.55,599.43,2.041]
[1746653632040,2.26707337,600.54,599.43,2.041]